bitfinex/quotes_ETHUSD_20240730
["timestamp","ask_amount","ask_price","bid_price","bid_amount"]
[1722336028443,1.57183305,3339.6,3339.5,2.99446]
[1722336028743,1.57183305,3339.6,3339.5,0.99]
[1722336028897,4.56620305,3339.6,3339.5,0.10031102]
[1722336029097,4.15562488,3339.6,3339.3,0.99]
[1722336029360,4.56628883,3339.5,3339.4,0.10031102]
[1722336029566,3.21127535,3339.5,3339.4,0.10031102]
[1722336029868,2.99469,3339.3,3338.9,0.99]
[1722336029998,2.1213291,3339.2,3338.9,0.99]
[1722336030200,2.1213291,3339.2,3339.0,0.10022231]
[1722336030201,0.55,3339.2,3339.0,0.10022231]
[1722336030499,3.54473,3339.2,3339.0,0.10022231]
[1722336030699,0.55,3339.2,3339.0,0.10022231]
[1722336031093,0.55,3339.2,3339.1,0.99]
[1722336031293,0.55,3339.2,3339.1,1.09017584]
[1722336031515,0.55,3339.2,3339.1,4.08498584]
[1722336032021,0.55,3339.2,3339.1,4.14655147]
[1722336032222,1.57133386,3339.5,3339.3,2.99463]
[1722336032535,1.88560063,3339.8,3339.3,2.99463]
[1722336032536,1.57133386,3339.8,3339.3,3.3158]
[1722336032711,2.99375,3340.3,3339.8,2.99418]
[1722336032909,1.57114397,3340.0,3339.9,1.15179217]
[1722336033432,4.87918214,3340.3,3339.9,1.15179217]
[1722336033433,1.57114397,3340.1,3339.9,1.15179217]
[1722336033638,2.21617658,3340.1,3339.9,1.15179217]
[1722336033800,1.57114397,3340.2,3339.9,4.14588217]
[1722336034002,1.57114397,3340.3,3340.1,3.98387]
[1722336034436,1.57114397,3340.4,3340.2,0.16168657]
[1722336034941,4.56480397,3340.4,3340.2,0.16168657]
[1722336035115,1.57114397,3340.3,3340.2,0.16168657]
[1722336035315,2.99366,3340.4,3339.7,0.99]
[1722336035316,2.99391,3340.2,3339.7,0.99]
[1722336035623,2.99397,3340.1,3339.8,0.16168657]
[1722336035823,3.9931224,3340.1,3339.8,0.16168657]
[1722336036016,3.9931224,3340.1,3339.8,0.15835323]
[1722336036537,0.9991524,3340.1,3339.8,2.99418]
[1722336036947,0.9991524,3340.1,3339.9,0.15835323]
[1722336037299,4.56312238,3340.3,3339.9,0.15835323]
[1722336037506,3.54388,3340.2,3339.9,0.15835323]
[1722336037706,3.54388,3340.2,3339.7,3.98427]
[1722336038043,2.99388,3340.2,3339.8,35.15835323]
[1722336038245,2.99405,3340.0,3339.8,0.15835323]
[1722336038608,2.99405,3340.0,3339.6,0.99]
[1722336038845,1.56934238,3340.2,3339.9,0.1577787]
[1722336039058,2.99383,3340.2,3339.8,0.99]
[1722336039575,2.99383,3340.2,3339.9,0.1577787]
[1722336039851,2.99393,3340.1,3339.9,0.1577787]
[1722336040049,2.99385,3340.2,3339.9,0.1577787]
[1722336040217,1.56830183,3340.3,3340.0,0.99]
[1722336040413,0.78722221,3340.5,3340.0,0.99]
[1722336040414,5.34909404,3340.5,3340.0,3.98398]
[1722336040633,0.55,3340.4,3340.0,3.98398]
[1722336040831,0.55,3340.4,3340.1,0.1577787]
[1722336041297,0.55,3340.4,3340.2,3.98378]
[1722336041433,2.99334,3340.8,3340.2,3.98378]
[1722336041434,1.56830183,3340.7,3340.2,0.99]
[1722336041795,1.56830183,3340.9,3340.5,3.98353]
[1722336041941,1.56830183,3341.0,3340.7,0.99]
[1722336042329,4.56133183,3341.1,3340.8,0.15761822]
[1722336042529,5.98612,3341.1,3340.8,0.15761822]
[1722336042775,2.9932,3340.9,3340.8,0.15761822]
[1722336042928,2.99331,3340.8,3340.5,0.99]
[1722336043131,2.99331,3340.8,3340.6,0.15761822]
[1722336043132,3.54338,3340.7,3340.6,0.15761822]
[1722336043360,3.54338,3340.7,3340.1,2.99391]
[1722336043361,6.53684,3340.7,3340.1,2.99391]
[1722336043663,3.54338,3340.7,3340.2,0.15738601]
[1722336043850,3.54338,3340.7,3340.2,1.14738601]
[1722336044050,4.13545162,3340.7,3340.2,1.14738601]
[1722336044637,1.14207162,3340.7,3340.2,1.14738601]
[1722336044937,4.13545162,3340.7,3340.2,1.14738601]
[1722336045331,1.14207162,3340.7,3340.3,2.99369]
[1722336045647,0.55,3340.7,3340.3,2.99368]
[1722336045830,0.55,3340.8,3340.4,0.15738601]
[1722336046231,3.54334,3340.8,3340.4,0.15738601]
[1722336046567,3.54334,3340.8,3340.2,3.98383]
[1722336046872,1.36029788,3340.8,3340.3,3.15107601]
[1722336047042,1.36029788,3340.8,3340.3,6.14476601]
[1722336047365,4.35363788,3340.8,3340.3,3.15107601]
[1722336047532,1.36029788,3340.8,3340.3,0.15738601]
[1722336047731,2.99338,3340.7,3340.3,0.15738601]
[1722336047935,0.55,3340.6,3340.3,0.15738601]
[1722336049152,2.99375,3340.3,3339.8,2.99417]
[1722336049480,0.55,3340.2,3339.9,0.15681291]
[1722336051298,0.55,3340.2,3339.9,3.15090291]
[1722336051456,0.55,3340.3,3339.9,4.14090291]
[1722336051801,0.55,3340.4,3339.9,4.14090291]
[1722336052367,3.54371,3340.4,3339.9,4.14090291]
[1722336052580,3.54371,3340.4,3339.9,1.14681291]
[1722336052581,1.447378,3340.4,3339.9,1.14681291]
[1722336053155,2.99378,3340.3,3339.9,1.14681291]
[1722336053450,0.55,3340.2,3339.9,1.14681291]
[1722336055763,0.55,3340.2,3339.9,1.14681291]
[1722336056039,2.9934,3340.7,3340.2,2.99378]
[1722336056247,1.56557462,3340.8,3340.2,2.99378]
[1722336056248,0.55,3340.6,3340.3,0.99]
[1722336056425,2.9933,3340.8,3340.3,3.98374]
[1722336056426,0.55,3340.7,3340.3,3.98374]
[1722336056633,3.54339,3340.7,3340.4,0.15682979]
[1722336056958,2.99317,3341.0,3340.5,0.99]
[1722336057270,2.9932,3340.9,3340.6,0.15682979]
[1722336057417,1.29930446,3340.8,3340.6,0.15682979]
[1722336057618,1.29930446,3340.8,3340.3,3.98373]
[1722336057845,2.9932,3340.9,3340.7,0.15682979]
[1722336058013,5.99312,3341.0,3340.4,2.99364]
[1722336058228,0.55,3340.8,3340.4,2.99364]
[1722336058410,0.55,3340.9,3340.4,2.99364]
[1722336059117,3.54326,3340.9,3340.3,3.98374]
[1722336059489,3.54326,3340.9,3340.3,0.99]
[1722336059490,2.99329,3340.8,3340.3,0.99]
[1722336059650,2.9933,3340.8,3340.3,2.99374]
[1722336060022,2.9933,3340.8,3340.2,2.99382]
[1722336060377,2.9933,3340.8,3340.2,2.99378]
[1722336060541,4.89744701,3340.9,3340.3,2.99369]
[1722336061778,4.89744701,3340.9,3340.4,2.99364]
[1722336063206,4.0271547,3340.8,3340.2,2.99382]
[1722336063481,1.0338547,3340.8,3340.2,2.99382]
[1722336064234,1.0338547,3340.8,3340.2,2.99375]
[1722336064595,1.0338547,3340.8,3340.3,2.9937]
[1722336065393,0.55,3340.9,3340.5,2.99351]
[1722336065874,1.565008,3341.2,3340.8,2.99325]
[1722336066076,1.565008,3341.2,3340.6,3.15009896]
[1722336066077,2.03476876,3341.4,3340.9,3.98313]
[1722336066245,0.59545508,3341.3,3340.9,6.97627]
[1722336066446,0.59545508,3341.3,3341.0,0.15669896]
[1722336067029,3.58829508,3341.3,3341.0,0.15669896]
[1722336067228,0.59545508,3341.3,3340.5,5.38239]
[1722336067483,0.55,3341.2,3340.7,2.99333]
[1722336067691,1.46658638,3341.2,3340.7,2.99331]
[1722336067896,1.46658638,3341.2,3340.7,2.99337]
[1722336068179,2.99308,3341.1,3340.8,0.15669896]
[1722336068381,2.99308,3341.1,3340.6,2.99347]
[1722336068580,2.99308,3341.1,3340.7,0.15669896]
[1722336068886,3.84485822,3341.1,3340.7,0.15669896]
[1722336069432,0.85177822,3341.1,3340.7,0.15669896]
[1722336069627,2.99326,3340.9,3340.7,0.15669896]
[1722336069871,2.99326,3340.9,3340.3,5.98741]
[1722336070177,0.55,3340.8,3340.4,2.99363]
[1722336070531,0.55,3340.8,3340.3,2.99368]
[1722336071170,3.54331,3340.8,3340.3,2.99368]
[1722336071332,0.55,3340.8,3340.3,2.99368]
[1722336071675,4.56024856,3341.0,3340.3,2.99368]
[1722336071676,0.55,3340.9,3340.5,2.9935]
[1722336073793,2.99344,3340.7,3340.1,2.99386]
[1722336073965,2.9936,3340.5,3340.0,7.46]
[1722336074139,2.99376,3340.3,3340.0,7.46]
[1722336074340,2.99376,3340.3,3339.8,5.39128]
[1722336074698,2.99365,3340.4,3339.9,2.99404]
[1722336074983,2.99365,3340.4,3340.0,2.99399]
[1722336075348,4.56182161,3340.6,3340.1,2.99388]
[1722336075551,0.55,3340.5,3340.1,2.99388]
[1722336075754,0.55,3340.5,3340.1,2.99387]
[1722336076083,0.55,3340.5,3339.8,2.3971]
[1722336076084,1.56828161,3340.8,3340.4,2.99361]
[1722336076400,2.99312,3341.0,3340.5,2.99354]
[1722336076401,1.56828161,3340.9,3340.5,2.99354]
[1722336076542,1.56828161,3340.8,3340.5,2.99354]
[1722336077063,1.56828161,3340.8,3340.6,2.99345]
[1722336077477,1.56976183,3340.8,3340.6,2.99345]
[1722336077651,1.56976183,3340.8,3340.5,5.39065]
[1722336078052,1.56976183,3340.8,3340.4,2.99364]
[1722336078252,1.56976183,3340.6,3340.1,2.3971]
[1722336078505,4.56328183,3340.6,3340.1,2.99387]
[1722336078700,1.56976183,3340.6,3340.2,2.99382]
[1722336079210,1.56976183,3340.6,3340.1,2.99387]
[1722336079211,1.56976183,3340.6,3340.3,2.99373]
[1722336080258,1.56976183,3340.6,3340.4,0.15120131]
[1722336081292,1.56976183,3340.6,3340.4,3.14484131]
[1722336081293,1.56971225,3340.6,3340.4,3.14484131]
[1722336081983,1.56971225,3340.7,3340.4,3.14484131]
[1722336082212,0.55,3340.6,3340.4,3.14484131]
[1722336082420,1.56971225,3340.7,3340.6,2.99347]
[1722336082625,1.56971225,3340.9,3340.6,2.99347]
[1722336082934,1.56971225,3340.8,3340.7,0.15120131]
[1722336083142,1.56971225,3341.1,3340.9,2.99319]
[1722336083287,5.34616547,3341.4,3340.9,2.99319]
[1722336083288,1.56971225,3341.0,3340.9,2.99319]
[1722336083484,1.56971225,3341.1,3340.9,2.99319]
[1722336083701,1.56971225,3341.2,3340.9,2.99314]
[1722336083937,1.30364131,3341.4,3340.9,2.99314]
[1722336084148,1.56940798,3341.2,3341.0,2.99311]
[1722336084434,1.56940798,3341.1,3340.8,2.99322]
[1722336084601,5.34587034,3341.4,3340.8,2.99322]
[1722336084602,1.56930922,3341.0,3340.8,2.99322]
[1722336084924,1.56930922,3341.0,3340.4,4.7707]
[1722336084925,1.56930922,3340.9,3340.6,2.99347]
[1722336085087,1.56930922,3340.9,3340.6,2.99346]
[1722336085294,1.56930922,3340.9,3340.7,2.99338]
[1722336085493,1.56930922,3341.0,3340.7,2.99338]
[1722336085694,1.56930922,3341.0,3340.6,2.99346]
[1722336085908,1.56930922,3340.9,3340.6,2.99346]
[1722336086305,1.56930922,3340.8,3340.6,2.99346]
[1722336086627,1.56930922,3340.9,3340.6,5.98688]
[1722336086827,1.56930922,3340.9,3340.6,2.99342]
[1722336087428,1.56932447,3340.9,3340.6,2.99342]
[1722336089108,1.56932447,3341.0,3340.7,2.99332]
[1722336089511,1.56932447,3341.0,3340.8,2.99327]
[1722336090025,1.56932447,3341.1,3340.6,2.9934]
[1722336090226,1.56932447,3341.1,3340.9,2.99315]
[1722336090433,0.55,3341.3,3340.9,2.99315]
[1722336090434,1.56932447,3341.0,3340.9,2.99315]
[1722336090636,0.55,3341.3,3340.8,2.99329]
[1722336090799,1.56985888,3341.1,3340.8,5.98653]
[1722336090995,1.56985888,3341.1,3340.8,2.99324]
[1722336091336,1.56985038,3341.1,3340.8,2.99324]
[1722336091711,0.55,3341.3,3340.8,2.99324]
[1722336091712,1.56985038,3341.0,3340.8,2.99324]
[1722336092224,1.56985038,3340.9,3340.4,5.39031]
[1722336092531,1.56985038,3340.9,3340.5,2.9935]
[1722336092837,1.56985038,3340.9,3340.6,2.99345]
[1722336093130,1.56976388,3340.9,3340.6,2.99345]
[1722336093371,1.56976388,3340.9,3340.4,5.39028]
[1722336093372,1.56976388,3340.9,3340.4,2.99356]
[1722336093535,1.56976388,3340.9,3340.5,2.99351]
[1722336093735,2.99312,3341.0,3340.5,2.99351]
[1722336093932,1.56946307,3340.9,3340.5,2.99351]
[1722336094736,1.56946307,3340.9,3340.6,2.99346]
[1722336095132,1.56946307,3340.9,3340.7,0.15099028]
[1722336096245,1.56946307,3340.9,3340.7,3.14433028]
[1722336096754,1.56946307,3340.9,3340.7,0.15099028]
[1722336098561,1.56946307,3340.8,3340.7,0.15099028]
[1722336098966,1.56946307,3340.8,3340.6,2.99346]
[1722336099261,1.56946307,3340.8,3340.7,0.15112533]
[1722336099464,1.56946307,3340.8,3340.7,3.14450533]
[1722336100479,2.99303,3341.1,3340.7,3.14450533]
[1722336100762,4.56307933,3340.8,3340.7,0.15112533]
[1722336100962,3.16262525,3340.8,3340.7,0.15112533]
[1722336101281,3.16262525,3340.8,3340.2,2.99375]
[1722336101282,2.99344,3340.7,3340.2,2.99375]
[1722336101426,1.57012691,3340.5,3340.2,2.99375]
[1722336102075,2.99344,3340.7,3340.2,2.99375]
[1722336102220,1.57061797,3340.5,3340.2,2.99375]
[1722336102931,1.57061797,3340.4,3340.2,5.98753]
[1722336103131,1.57061797,3340.5,3340.3,2.99374]
[1722336103879,1.57069073,3340.5,3340.3,2.99374]
[1722336104935,1.57069073,3340.4,3340.3,2.99374]
[1722336106848,1.57069073,3340.5,3340.3,2.99374]
[1722336107272,1.56997193,3340.5,3340.3,2.99374]
[1722336107625,1.56997193,3340.5,3340.3,2.99369]
[1722336108173,1.56988058,3340.5,3340.3,2.99369]
[1722336108938,1.56988058,3340.5,3340.4,2.99365]
[1722336109355,1.56988058,3340.5,3340.4,5.9873]
[1722336109568,1.56988058,3340.6,3340.5,2.99356]
[1722336109728,1.56988058,3340.6,3340.5,5.98712]
[1722336109926,5.19077281,3341.2,3340.6,2.99347]
[1722336109927,1.56988058,3340.7,3340.6,2.99347]
[1722336110124,1.56988058,3340.8,3340.7,2.99338]
[1722336110536,1.5702973,3340.8,3340.6,2.3616]
[1722336110883,1.5702973,3340.9,3340.8,2.99329]
[1722336111027,0.46976076,3341.4,3340.8,2.99323]
[1722336111222,0.46976076,3341.4,3340.9,2.9932]
[1722336111223,1.57042026,3341.0,3340.9,2.9932]
[1722336111454,1.57042026,3341.1,3341.0,2.99311]
[1722336112207,1.57042026,3341.1,3341.0,3.14433662]
[1722336112939,3.46251076,3341.4,3341.0,0.15122662]
[1722336113147,1.88410219,3341.2,3341.0,0.15122662]
[1722336113388,2.43410219,3341.3,3340.9,2.9932]
[1722336113674,1.57003683,3341.0,3340.9,2.9932]
[1722336117079,2.43372108,3341.3,3341.0,2.99306]
[1722336117279,0.16928868,3341.2,3341.0,2.99306]
[1722336117487,0.55,3341.3,3341.0,2.99306]
[1722336117680,1.56969159,3341.1,3341.0,2.99306]
[1722336117886,0.55,3341.3,3341.0,2.99306]
[1722336118240,1.56962496,3341.1,3341.0,2.99306]
[1722336118446,0.55,3341.3,3341.0,2.99306]
[1722336118737,0.16931613,3341.2,3341.0,2.99306]
[1722336118942,0.55,3341.3,3341.0,2.99306]
[1722336119187,0.16930661,3341.2,3341.0,2.99306]
[1722336119388,0.55,3341.3,3341.0,2.99306]
[1722336119591,0.16929129,3341.2,3341.0,2.99306]
[1722336119809,0.55,3341.3,3341.0,2.99306]
[1722336120110,0.16928324,3341.2,3341.0,2.99306]
[1722336120319,0.55,3341.3,3341.0,2.99306]
[1722336120504,0.169279,3341.2,3341.0,2.99306]
[1722336120705,0.55,3341.3,3341.0,2.99306]
[1722336121010,0.16927648,3341.2,3341.0,2.99306]
[1722336121310,2.43346154,3341.3,3341.0,2.99306]
[1722336121517,0.16931409,3341.2,3341.0,2.99306]
[1722336121718,2.43346154,3341.3,3341.0,2.99306]
[1722336121932,0.16931776,3341.2,3341.0,2.99306]
[1722336122083,2.43346154,3341.3,3341.0,2.99306]
[1722336122285,0.16930289,3341.2,3341.0,2.99306]
[1722336122472,0.55,3341.3,3341.0,2.99306]
[1722336122795,0.16929942,3341.2,3341.0,2.99306]
[1722336122996,0.55,3341.3,3341.0,2.99306]
[1722336123308,0.16930041,3341.2,3340.9,2.99319]
[1722336123478,1.56980679,3341.0,3340.9,2.99319]
[1722336123884,2.99334,3340.8,3340.2,9.8609]
[1722336124089,1.56968649,3340.6,3340.3,2.9937]
[1722336124305,1.56968649,3340.5,3340.2,10.45382]
[1722336124473,1.56968649,3340.4,3340.3,2.99374]
[1722336124670,1.56968649,3340.4,3340.2,10.45382]
[1722336124982,1.56951126,3340.4,3340.2,10.45382]
[1722336125191,1.56951126,3340.5,3340.3,0.14557631]
[1722336125406,1.56951126,3340.5,3340.4,2.99365]
[1722336125562,1.56951126,3340.5,3340.4,3.98265]
[1722336125767,1.88352912,3340.9,3340.7,2.99337]
[1722336125995,1.56963152,3340.8,3340.7,3.98237]
[1722336126178,1.56963152,3340.9,3340.8,2.99329]
[1722336126785,1.88352912,3341.2,3340.8,3.13904778]
[1722336126982,1.57066034,3340.9,3340.8,3.13904778]
[1722336127603,1.57066034,3340.9,3340.8,6.13233778]
[1722336127922,0.55,3341.3,3340.9,2.9932]
[1722336127923,1.57066034,3341.0,3340.9,2.9932]
[1722336128280,1.57066034,3341.0,3340.9,6.04626341]
[1722336128476,1.88352912,3341.3,3340.9,6.04626341]
[1722336128477,1.57066034,3341.3,3341.0,2.2886]
[1722336128784,2.0404211,3341.4,3341.3,5.98568]
[1722336129002,0.46976076,3341.4,3341.3,5.98568]
[1722336129209,2.04088641,3341.4,3341.3,3.13859778]
[1722336129522,0.46976076,3341.4,3341.3,3.13859778]
[1722336129817,2.04054445,3341.4,3341.3,3.13859778]
[1722336129972,0.46976076,3341.4,3341.3,3.13859778]
[1722336131187,2.04049221,3341.4,3341.3,3.13859778]
[1722336131598,1.57073145,3341.4,3341.3,3.13859778]
[1722336131922,1.57073145,3341.5,3341.4,2.99275]
[1722336132417,1.57012748,3341.6,3341.5,2.99264]
[1722336132932,2.43383169,3341.9,3341.6,2.99251]
[1722336133072,1.56993708,3341.7,3341.6,2.99251]
[1722336133421,1.56993708,3341.7,3341.6,3.13781627]
[1722336133589,1.56993708,3341.8,3341.6,6.13034627]
[1722336133796,1.56993708,3341.8,3341.6,3.13781627]
[1722336134862,1.56993708,3341.8,3341.6,0.14530627]
[1722336135499,1.56912737,3341.8,3341.6,3.13786627]
[1722336136511,1.56912737,3341.9,3341.6,3.13786627]
[1722336136880,1.56912737,3341.9,3341.8,2.99239]
[1722336137100,1.56912737,3342.1,3342.0,5.98444]
[1722336137317,1.56912737,3342.5,3342.2,2.99196]
[1722336137617,1.56912737,3342.6,3342.2,2.99196]
[1722336137820,4.56072737,3342.7,3342.2,2.99196]
[1722336137972,1.56912737,3342.6,3342.4,2.4925]
[1722336138178,5.51574355,3343.9,3342.6,2.99168]
[1722336138179,1.56912737,3343.1,3342.6,2.99168]
[1722336138401,1.72604011,3343.0,3342.6,2.99168]
[1722336138647,1.56760683,3343.0,3342.7,0.14488876]
[1722336138872,1.56760683,3343.0,3342.4,37.4925]
[1722336138873,2.99141,3342.9,3342.4,35.0]
[1722336139093,4.55892683,3343.0,3342.8,0.14488876]
[1722336139287,1.88112819,3343.3,3342.4,35.0]
[1722336139288,2.99155,3342.8,3342.4,35.0]
[1722336139487,4.55908683,3342.9,3342.4,35.0]
[1722336139697,2.02351551,3342.8,3342.4,35.0]
[1722336139923,2.99141,3342.9,3342.4,35.0]
[1722336140127,2.99141,3342.9,3342.5,0.14464848]
[1722336140128,0.55,3342.8,3342.5,0.14464848]
[1722336140793,0.55,3342.8,3342.3,2.9919]
[1722336140794,0.55,3342.8,3342.3,35.0]
[1722336140993,1.56760683,3343.1,3342.6,0.14464848]
[1722336140994,3.54146,3342.9,3342.6,0.14464848]
[1722336141239,0.81003268,3342.8,3342.7,0.14464848]
[1722336141527,4.35160268,3342.8,3342.2,2.99198]
[1722336141823,0.55,3342.8,3342.7,0.14464848]
[1722336142030,0.55,3342.8,3342.4,2.99181]
[1722336142320,1.56461746,3343.1,3342.7,2.99155]
[1722336142541,1.56461746,3343.3,3342.8,2.99149]
[1722336142707,4.55566746,3343.4,3342.8,3.13548489]
[1722336142903,1.29065975,3343.3,3342.8,3.13548489]
[1722336143208,4.28172975,3343.3,3342.8,0.14399489]
[1722336143549,2.85527721,3343.3,3342.3,2.9919]
[1722336143897,2.99132,3343.0,3342.3,2.99189]
[1722336144234,3.54141,3342.9,3342.4,2.9918]
[1722336144435,2.99141,3342.9,3342.4,2.9918]
[1722336144640,2.99141,3342.9,3342.4,2.99185]
[1722336145152,2.99132,3343.0,3342.5,2.99176]
[1722336145357,0.55,3342.9,3342.6,2.99168]
[1722336145499,2.99098,3343.4,3342.8,2.99148]
[1722336145920,2.99119,3343.2,3342.6,2.99168]
[1722336146248,2.99104,3343.4,3342.7,2.99152]
[1722336146546,2.99093,3343.5,3342.9,2.99135]
[1722336147035,1.54048972,3343.4,3342.9,5.9827]
[1722336147255,0.55,3343.4,3343.1,2.99116]
[1722336147434,2.99061,3343.8,3343.3,2.99103]
[1722336147754,2.99084,3343.6,3342.9,2.99135]
[1722336148035,2.3637,3343.7,3342.7,5.31147]
[1722336148211,2.99101,3343.4,3342.8,2.99145]
[1722336148420,2.99101,3343.4,3342.9,35.0]
[1722336148713,3.526264,3343.6,3342.9,2.99135]
[1722336148935,2.99101,3343.4,3342.8,2.99145]
[1722336149243,1.1389964,3343.5,3343.0,2.99128]
[1722336149450,0.55,3343.5,3343.0,2.99128]
[1722336149739,2.9907,3343.7,3343.0,3.05109293]
[1722336149952,1.56188255,3344.4,3343.2,5.36514]
[1722336150168,2.99003,3344.5,3343.8,2.99056]
[1722336150305,2.98985,3344.7,3344.0,2.99038]
[1722336150512,2.98995,3344.6,3344.0,2.99038]
[1722336150824,0.59798,3344.5,3343.9,2.99045]
[1722336151023,2.99011,3344.4,3343.8,2.99059]
[1722336151222,2.99016,3344.3,3343.7,2.99063]
[1722336151428,2.99016,3344.3,3343.4,7.46]
[1722336151429,2.99043,3344.0,3343.4,7.46]
[1722336151609,2.99057,3343.9,3343.3,2.99098]
[1722336151816,0.5981,3343.9,3343.4,2.99088]
[1722336152040,2.99041,3344.1,3343.5,2.99082]
[1722336152374,2.99052,3343.9,3343.3,2.991]
[1722336152514,6.53999,3344.5,3343.0,2.99127]
[1722336152718,2.99084,3343.6,3343.0,2.99125]
[1722336153051,2.99084,3343.6,3342.9,2.99135]
[1722336153264,2.99067,3343.8,3343.1,2.99117]
[1722336153466,0.55,3343.7,3343.3,2.99099]
[1722336153760,0.354053,3343.6,3343.4,2.99096]
[1722336153939,0.55,3343.7,3343.4,2.99096]
[1722336154110,2.99045,3344.0,3343.2,2.99106]
[1722336154452,2.9903,3344.2,3343.4,2.99089]
[1722336154761,1.30986307,3344.1,3343.5,0.14313952]
[1722336154909,2.99067,3343.8,3343.5,0.14313952]
[1722336155267,2.99067,3343.8,3343.2,2.99112]
[1722336155268,2.99051,3344.0,3343.4,2.99092]
[1722336155569,2.99056,3343.9,3343.5,0.14327432]
[1722336155705,2.99061,3343.8,3343.5,0.14327432]
[1722336155905,2.9907,3343.7,3343.2,2.99107]
[1722336156109,2.9907,3343.7,3343.6,0.14327432]
[1722336156415,0.598126,3343.7,3343.3,2.99105]
[1722336156759,3.54039,3344.1,3343.4,2.99094]
[1722336156760,2.99049,3344.0,3343.4,2.99094]
[1722336157050,2.99069,3343.7,3343.4,0.1432364]
[1722336157502,2.99069,3343.7,3343.5,0.14327432]
[1722336157660,3.289759,3343.7,3343.5,0.14327432]
[1722336157985,0.299069,3343.7,3343.3,2.99104]
[1722336158185,2.99048,3344.0,3343.6,0.14327432]
[1722336158494,2.99048,3344.0,3343.7,0.14327432]
[1722336158661,2.99048,3344.0,3343.5,2.99085]
[1722336158857,3.54036,3344.1,3343.6,0.14327432]
[1722336159070,4.493421,3344.1,3343.6,3.13401432]
[1722336159279,1.503061,3344.1,3343.6,3.13401432]
[1722336159601,2.9901,3344.4,3343.8,2.99057]
[1722336159754,2.9901,3344.4,3343.8,2.99056]
[1722336159955,2.9901,3344.4,3343.9,2.99046]
[1722336160186,2.98998,3344.5,3344.0,2.99042]
[1722336160345,0.597991,3344.4,3344.0,2.99042]
[1722336160547,0.597991,3344.4,3344.1,0.13854735]
[1722336160751,2.98969,3344.9,3344.1,0.13854735]
[1722336160998,2.98969,3344.9,3344.2,5.42979]
[1722336161304,2.98968,3344.9,3344.3,0.13832832]
[1722336161511,2.9895,3345.1,3344.4,3.04985533]
[1722336161799,0.29895,3345.0,3344.4,3.04985533]
[1722336162189,2.98964,3344.9,3344.5,0.13832411]
[1722336162353,3.28849,3345.0,3344.5,0.13832411]
[1722336163449,2.98966,3344.9,3344.5,0.13832411]
[1722336164069,5.97935,3344.9,3344.5,0.13832411]
[1722336164268,0.62783,3344.8,3344.5,0.13832411]
[1722336164567,2.98933,3345.3,3344.5,0.13832411]
[1722336164772,2.98933,3345.3,3344.6,2.98983]
[1722336164773,5.98936,3345.2,3344.6,2.98983]
[1722336165087,5.98936,3345.2,3344.7,0.13821041]
[1722336165298,2.98946,3345.1,3344.7,0.13821041]
[1722336165499,2.98971,3344.8,3344.4,35.0]
[1722336165667,2.98986,3344.7,3344.2,2.4396]
[1722336165868,2.98989,3344.6,3343.8,5.27146]
[1722336166067,2.99016,3344.3,3343.8,5.27146]
[1722336166373,2.99016,3344.3,3343.5,7.46]
[1722336166374,2.9904,3344.1,3343.9,0.13821041]
[1722336166567,3.588174,3344.3,3343.9,0.13821041]
[1722336166782,2.99016,3344.3,3343.8,2.99056]
[1722336167096,2.99016,3344.3,3343.7,2.99069]
[1722336167397,2.99029,3344.2,3343.8,0.13817252]
[1722336167754,0.55,3345.0,3343.8,2.99054]
[1722336167956,2.99006,3344.5,3343.9,3.12863252]
[1722336168156,2.9899,3344.6,3344.1,2.99025]
[1722336168861,2.9899,3344.6,3344.2,0.13817252]
[1722336169057,2.99015,3344.4,3344.2,0.13817252]
[1722336169378,2.99015,3344.4,3344.0,2.2809]
[1722336169379,2.99016,3344.3,3344.0,2.2809]
[1722336170023,2.99007,3344.4,3344.0,2.2809]
[1722336170227,2.99007,3344.4,3344.1,0.13790295]
[1722336170371,2.98976,3344.8,3344.1,0.13790295]
[1722336170575,2.98989,3344.6,3344.1,3.12819295]
[1722336170907,2.98989,3344.6,3344.1,0.13790295]
[1722336171116,2.98989,3344.6,3344.2,0.05979898]
[1722336171306,7.00920506,3344.8,3344.2,3.05003898]
[1722336171479,2.98983,3344.7,3344.2,3.05003898]
[1722336171822,2.9899,3344.6,3344.1,2.99033]
[1722336171976,2.9899,3344.6,3344.3,0.13790295]
[1722336172324,2.99009,3344.4,3344.0,2.2809]
[1722336172909,2.99009,3344.4,3343.9,2.9905]
[1722336173119,2.9899,3344.6,3344.0,3.0501519]
[1722336173433,0.55,3344.8,3344.2,2.99021]
[1722336173635,2.9898,3344.7,3344.3,0.05979653]
[1722336174437,2.98963,3344.9,3344.4,2.317]
[1722336175016,2.98946,3345.1,3344.5,3.04975162]
[1722336175211,2.98946,3345.1,3344.5,2.98996]
[1722336175412,5.97896,3345.1,3344.5,2.98996]
[1722336175629,5.97897,3345.1,3344.5,2.98996]
[1722336175835,2.98946,3345.1,3344.6,2.98986]
[1722336176144,5.98935,3345.2,3344.6,2.98982]
[1722336176437,6.887217,3345.2,3344.6,2.98982]
[1722336176745,2.98954,3345.0,3344.5,2.98997]
[1722336177393,3.0,3345.2,3344.4,2.317]
[1722336177744,2.98891,3345.7,3344.6,2.98989]
[1722336177908,2.98927,3345.3,3344.6,2.98989]
[1722336178100,3.0,3345.2,3344.6,2.98983]
[1722336178507,5.98935,3345.2,3344.7,2.9898]
[1722336178813,6.887212,3345.2,3344.7,2.9898]
[1722336179017,6.887212,3345.2,3344.6,2.98988]
[1722336179351,6.887212,3345.2,3344.6,5.97971]
[1722336179501,6.887212,3345.2,3344.6,2.98983]
[1722336179704,3.897862,3345.2,3344.7,2.98973]
[1722336180303,3.897862,3345.2,3344.6,2.98983]
[1722336180612,3.887222,3345.2,3344.6,5.97968]
[1722336180816,3.887222,3345.2,3344.6,2.98983]
[1722336180817,2.98936,3345.2,3344.6,2.98983]
[1722336181017,2.98926,3345.4,3344.7,2.98979]